{"text_format":"3","workbook":"xlsx","n_sheets":4,"sheets":["Start","Ausgaben","Einnahmen","Zusammenfassung"],"not_rendered":{"charts":1,"defined_names":2},"read":"whole","date_system":"1900"}

{"sheet":"Start","index":0,"n_rows":8,"n_cols":2,"rows_kept":8}
[null,"ÜBER DIESE VORLAGE"]
[null,"Verwenden Sie die Arbeitsmappe \"Veranstaltungsbudget\", um die aufgelaufenen Ausgaben und Einnahmen im Rahmen einer Veranstaltung nachzuverfolgen."]
[null,"Füllen Sie \"Veranstaltungsname\" aus, und geben Sie Details in die Tabellen der Arbeitsblätter \"Ausgaben\" und \"Einnahmen\" ein."]
[null,"Die Gesamtausgaben und Gesamteinnahmen werden automatisch berechnet."]
[null,"Die Zusammenfassung von Gewinn und Verlust und das Diagramm werden im Arbeitsblatt \"Zusammenfassung\" automatisch aktualisiert."]
[null,"Anmerkung: "]
[null,"Weitere Anweisungen wurden in Spalte A auf jedem Arbeitsblatt bereitgestellt. Diese Texte wurden absichtlich ausgeblendet. Um die Texte zu entfernen, wählen Sie Spalte A und dann ENTF aus. Um die Texte einzublenden, wählen Sie Spalte A aus, und ändern Sie die Schriftfarbe."]
[null,"Wenn Sie mehr zu Tabellen erfahren möchten, drücken Sie die UMSCHALTTASTE und dann innerhalb einer Tabelle F10, wählen Sie die Option \"TABELLE\" und dann \"ALTERNATIVTEXT\" aus."]

{"sheet":"Ausgaben","index":1,"n_rows":33,"n_cols":8,"rows_kept":33,"merged":[[0,5,0,7],[1,1,1,7],[2,6,2,7]]}
["Geben Sie die geschätzt und tatsächlich Ausgaben für jede Kategorie in den jeweiligen Tabellen dieses Arbeitsblatts ein. Die Gesamtausgaben werden automatisch berechnet. Hilfreiche Anweisungen zur Verwendung dieses Arbeitsblatts stehen in Zellen in dieser Spalte. Drücken Sie die NACH-UNTEN-TASTE, um anzufangen."]
["Geben Sie den Veranstaltungsname in der Zelle rechts ein, um den Titel dieses Arbeitsblatts und anderer Arbeitsblätter anzupassen.","Veranstaltungsbudget für \nVeranstaltungsname"]
["Die Bezeichnung \"Ausgaben\" steht in Zelle G3.",{"$nulls":5}," Ausgaben"]
["Die Bezeichnung \"Geschätzt\" steht in Zelle G4 und die Bezeichnung \"Tatsächlich\" in Zelle H4.",{"$nulls":5},"Geschätzt","Tatsächlich"]
["Die Bezeichnung \"Gesamtausgaben\" steht in der Zelle rechts. Die geschätzt Gesamtausgaben werden in Zelle G5 automatisch berechnet. Die tatsächlich Gesamtausgaben und der Datenbalken zur Darstellung der tatsächlich Gesamtausgaben werden in Zelle H5 automatisch aktualisiert. Die nächste Anweisung finden Sie in Zelle A7.","Gesamtausgaben",{"$nulls":4},{"$f":"SUM(C12,C20,C26,C33,G12,G20,G25)","v":{"v":1145,"d":"1,145.00 €"}},{"$f":"SUM(D12,D20,D26,D33,H12,H20,H25)","v":{"v":395,"d":"395.00 €"}}]
[]
["Geben Sie die Ausgaben für Veranstaltungsort in der Tabelle ab der Zelle rechts und die Ausgaben für Erfrischungen ab Zelle F7 ein. Die nächste Anweisung finden Sie in Zelle A14.","Veranstaltungsort","Geschätzt","Tatsächlich",null,"Erfrischungen","Geschätzt","Tatsächlich"]
[null,"Gebühren für Raum und Halle",{"v":500,"d":"500.00 €"},{"v":250,"d":"250.00 €"},null,"Essen"]
[null,"Personal am Veranstaltungsort",{"v":400,"d":"400.00 €"},{"v":50,"d":"50.00 €"},null,"Getränke"]
[null,"Ausstattung",{"$nulls":3},"Tischwäsche"]
[null,"Tische und Stühle",{"$nulls":3},"Personal und Trinkgelder"]
[null,"Ergebnis",{"$f":"SUBTOTAL(109,AusgabenFürVeranstaltungsort[Geschätzt])","v":{"v":900,"d":"900.00 €"}},{"$f":"SUBTOTAL(109,AusgabenFürVeranstaltungsort[Tatsächlich])","v":{"v":300,"d":"300.00 €"}},null,"Ergebnis",{"$f":"SUBTOTAL(109,AusgabenFürErfrischungen[Geschätzt])","v":{"v":0,"d":"0.00 €"}},{"$f":"SUBTOTAL(109,AusgabenFürErfrischungen[Tatsächlich])","v":{"v":0,"d":"0.00 €"}}]
[]
["Geben Sie die Ausgaben für Dekorationen in der Tabelle ab der Zelle rechts und die Ausgaben für Programm ab Zelle F14 ein. Die nächste Anweisung finden Sie in Zelle A22.","Dekorationen","Geschätzt","Tatsächlich",null,"Programm","Geschätzt","Tatsächlich"]
[null,"Blumen",{"v":200,"d":"200.00 €"},{"v":50,"d":"50.00 €"},null,"Künstler"]
[null,"Kerzen",{"$nulls":3},"Referenten"]
[null,"Beleuchtung",{"$nulls":3},"Reise"]
[null,"Ballons",{"$nulls":3},"Hotel"]
[null,"Papierlieferungen",{"$nulls":3},"Sonstiges"]
[null,"Ergebnis",{"$f":"SUBTOTAL(109,AusgabenFürDekorationen[Geschätzt])","v":{"v":200,"d":"200.00 €"}},{"$f":"SUBTOTAL(109,AusgabenFürDekorationen[Tatsächlich])","v":{"v":50,"d":"50.00 €"}},null,"Ergebnis",{"$f":"SUBTOTAL(109,AusgabenFürProgramm[Geschätzt])","v":{"v":0,"d":"0.00 €"}},{"$f":"SUBTOTAL(109,AusgabenFürProgramm[Tatsächlich])","v":{"v":0,"d":"0.00 €"}}]
[]
["Geben Sie die Ausgaben für Öffentlichkeitsarbeit in der Tabelle ab der Zelle rechts und die Ausgaben für Preise ab Zelle F22 ein. Die nächste Anweisung finden Sie in Zelle A28.","Öffentlichkeitsarbeit","Geschätzt","Tatsächlich",null,"Preise","Geschätzt","Tatsächlich"]
[null,"Grafikarbeiten",{"v":45,"d":"45.00 €"},{"v":45,"d":"45.00 €"},null,"Schleifen/Plaketten/Pokale"]
[null,"Kopieren/Drucken",{"$nulls":3},"Geschenke"]
[null,"Porto",{"$nulls":3},"Ergebnis",{"$f":"SUBTOTAL(109,AusgabenFürPreise[Geschätzt])","v":{"v":0,"d":"0.00 €"}},{"$f":"SUBTOTAL(109,AusgabenFürPreise[Tatsächlich])","v":{"v":0,"d":"0.00 €"}}]
[null,"Ergebnis",{"$f":"SUBTOTAL(109,AusgabenFürÖffentlichkeitsarbeit[Geschätzt])","v":{"v":45,"d":"45.00 €"}},{"$f":"SUBTOTAL(109,AusgabenFürÖffentlichkeitsarbeit[Tatsächlich])","v":{"v":45,"d":"45.00 €"}}]
[]
["Geben Sie die Ausgaben für Sonstiges in der Tabelle ab der Zelle rechts ein.","Sonstiges","Geschätzt","Tatsächlich"]
[null,"Telefon"]
[null,"Beförderung"]
[null,"Büromaterial"]
[null,"Faxdienste"]
[null,"Summe",{"$f":"SUBTOTAL(109,AusgabenFürSonstiges[Geschätzt])","v":{"v":0,"d":"0.00 €"}},{"$f":"SUBTOTAL(109,AusgabenFürSonstiges[Tatsächlich])","v":{"v":0,"d":"0.00 €"}}]

{"sheet":"Einnahmen","index":2,"n_rows":30,"n_cols":7,"rows_kept":30,"merged":[[1,1,1,6],[2,5,2,6]]}
["Geben Sie die geschätzten und tatsächlichen Einnahmen für jede Kategorie in den jeweiligen Tabellen dieses Arbeitsblatts ein. Die Gesamteinnahmen werden automatisch berechnet. Hilfreiche Anweisungen zur Verwendung dieses Arbeitsblatts stehen in Zellen in dieser Spalte. Drücken Sie die NACH-UNTEN-TASTE, um anzufangen."]
["Der Veranstaltungsname in der Zelle rechts wird automatisch aktualisiert.",{"$f":"Ausgaben!B2","v":"Veranstaltungsbudget für \nVeranstaltungsname"}]
["Die Bezeichnung \"Einnahmen\" steht in Zelle F3.",{"$nulls":4}," Einnahmen"]
["Die Bezeichnung \"Geschätzt\" steht in Zelle F4 und die Bezeichnung \"Tatsächlich\" in Zelle G4.",{"$nulls":4},"Geschätzt","Tatsächlich"]
["Die Bezeichnung \"Gesamteinnahmen\" steht in der Zelle rechts. Die geschätzte Summe werden in Zelle F5 automatisch berechnet. Die tatsächliche Summe und der Datenbalken zur Darstellung der tatsächlichen Gesamteinnahmen werden in Zelle G5 automatisch aktualisiert.","Gesamteinnahmen",{"$nulls":3},{"$f":"SUM(Eintritte[[#Totals],[Geschätzte Summe]],WerbeanzeigenImProgramm[[#Totals],[Geschätzte Summe]],AusstellerUndLieferanten[[#Totals],[Geschätzte Summe]],VerkaufVonArtikel[[#Totals],[Geschätzte Summe]])","v":{"v":1936,"d":"1,936.00 €"}},{"$f":"SUM(Eintritte[[#Totals],[Tatsächliche Summe]],WerbeanzeigenImProgramm[[#Totals],[Tatsächliche Summe]],AusstellerUndLieferanten[[#Totals],[Tatsächliche Summe]],VerkaufVonArtikel[[#Totals],[Tatsächliche Summe]])","v":{"v":1831,"d":"1,831.00 €"}}]
["Die Bezeichnung \"Eintritte\" steht in der Zelle rechts.","Eintritte"]
["Geben Sie in der Tabelle ab der Zelle rechts die geschätzt und tatsächlich Anzahl der Eintritte mit den Ticketpreisen ein. Die geschätzt und tatsächlich Einnahmen aus Eintritten werden automatisch berechnet. Die nächste Anweisung finden Sie in Zelle A12.","Geschätzt","Tatsächlich","Typ","Preis","Geschätzte Summe","Tatsächliche Summe"]
[null,300,278,"Erwachsene @",{"v":5,"d":"5.00 €"},{"$f":"B8*E8","v":{"v":1500,"d":"1,500.00 €"}},{"$f":"C8*E8","v":{"v":1390,"d":"1,390.00 €"}}]
[null,197,195,"Kinder @",{"v":2,"d":"2.00 €"},{"$f":"B9*E9","v":{"v":394,"d":"394.00 €"}},{"$f":"C9*E9","v":{"v":390,"d":"390.00 €"}}]
[null,42,51,"Andere @",{"v":1,"d":"1.00 €"},{"v":42,"d":"42.00 €"},{"v":51,"d":"51.00 €"}]
[null," ",{"$nulls":3},{"$f":"SUBTOTAL(109,Eintritte[Geschätzte Summe])","v":{"v":1936,"d":"1,936.00 €"}},{"$f":"SUBTOTAL(109,Eintritte[Tatsächliche Summe])","v":{"v":1831,"d":"1,831.00 €"}}]
["Die Bezeichnung \"Werbeanzeigen im Programm\" steht in der Zelle rechts.","Werbeanzeigen im Programm"]
["Geben Sie in der Tabelle ab der Zelle rechts die geschätzt und tatsächlich Anzahl der Werbeanzeigen im Programm und die Anzeigenpreise ein. Die geschätzt und tatsächlich Einnahmen aus Werbeanzeigen werden automatisch berechnet. Die nächste Anweisung finden Sie in Zelle A18.","Geschätzt","Tatsächlich","Typ","Preis","Geschätzte Summe","Tatsächliche Summe"]
[{"$nulls":3},"Deckblätter @",null,{"$f":"B14*E14","v":{"v":0,"d":"0.00 €"}},{"$f":"C14*E14","v":{"v":0,"d":"0.00 €"}}]
[{"$nulls":3},"Halbe Seiten @",null,{"$f":"B15*E15","v":{"v":0,"d":"0.00 €"}},{"$f":"C15*E15","v":{"v":0,"d":"0.00 €"}}]
[{"$nulls":3},"Viertelseiten @",null,{"v":0,"d":"0.00 €"},{"v":0,"d":"0.00 €"}]
[null," ",{"$nulls":3},{"$f":"SUBTOTAL(109,WerbeanzeigenImProgramm[Geschätzte Summe])","v":{"v":0,"d":"0.00 €"}},{"$f":"SUBTOTAL(109,WerbeanzeigenImProgramm[Tatsächliche Summe])","v":{"v":0,"d":"0.00 €"}}]
["Die Bezeichnung \"Aussteller oder Lieferanten\" steht in der Zelle rechts.","Aussteller/Lieferanten"]
["Geben Sie in der Tabelle ab der Zelle rechts die geschätzt und tatsächlich Anzahl von Aussteller und Lieferanten sowie die Messestandpreise ein. Die geschätzt und tatsächlich Einnahmen werden automatisch berechnet. Die nächste Anweisung finden Sie in Zelle A24.","Geschätzt","Tatsächlich","Typ","Preis","Geschätzte Summe","Tatsächliche Summe"]
[{"$nulls":3},"Große Stände @",null,{"$f":"B20*E20","v":{"v":0,"d":"0.00 €"}},{"$f":"C20*E20","v":{"v":0,"d":"0.00 €"}}]
[{"$nulls":3},"Mittelgroße Stände @",null,{"$f":"B21*E21","v":{"v":0,"d":"0.00 €"}},{"$f":"C21*E21","v":{"v":0,"d":"0.00 €"}}]
[{"$nulls":3},"Kleine Stände @",null,{"v":0,"d":"0.00 €"},{"v":0,"d":"0.00 €"}]
[null," ",{"$nulls":3},{"$f":"SUBTOTAL(109,AusstellerUndLieferanten[Geschätzte Summe])","v":{"v":0,"d":"0.00 €"}},{"$f":"SUBTOTAL(109,AusstellerUndLieferanten[Tatsächliche Summe])","v":{"v":0,"d":"0.00 €"}}]
["Die Bezeichnung \"Verkauf von Artikeln\" steht in der Zelle rechts.","Verkauf von Artikeln"]
["Geben Sie in der Tabelle ab der Zelle rechts die geschätzte und tatsächliche Anzahl der verkauften Artikel und die Artikelpreise ein.  Die geschätzten und tatsächlichen Einnahmen werden automatisch berechnet.","Geschätzt","Tatsächlich","Typ","Preis","Geschätzte Summe","Tatsächliche Summe"]
[{"$nulls":3},"Artikel @",null,{"$f":"B26*E26","v":{"v":0,"d":"0.00 €"}},{"$f":"C26*E26","v":{"v":0,"d":"0.00 €"}}]
[{"$nulls":3},"Artikel @",null,{"$f":"B27*E27","v":{"v":0,"d":"0.00 €"}},{"$f":"C27*E27","v":{"v":0,"d":"0.00 €"}}]
[{"$nulls":3},"Artikel @",null,{"v":0,"d":"0.00 €"},{"v":0,"d":"0.00 €"}]
[{"$nulls":3},"Artikel @",null,{"v":0,"d":"0.00 €"},{"v":0,"d":"0.00 €"}]
[null," ",{"$nulls":3},{"$f":"SUBTOTAL(109,VerkaufVonArtikel[Geschätzte Summe])","v":{"v":0,"d":"0.00 €"}},{"$f":"SUBTOTAL(109,VerkaufVonArtikel[Tatsächliche Summe])","v":{"v":0,"d":"0.00 €"}}]

{"sheet":"Zusammenfassung","index":3,"n_rows":9,"n_cols":4,"rows_kept":9,"merged":[[1,1,1,3],[2,2,2,3],[8,1,8,4],[9,1,9,3]]}
["\"Zusammenfassung_Gewinn und Verlust\" und das Diagramm mit \"Gesamteinnahmen\" werden in diesem Arbeitsblatt automatisch aktualisiert. Hilfreiche Anweisungen zur Verwendung dieses Arbeitsblatts stehen in Zellen in dieser Spalte. Drücken Sie die NACH-UNTEN-TASTE, um anzufangen."]
["Der Veranstaltungsname in der Zelle rechts wird automatisch aktualisiert.",{"$f":"Ausgaben!B2","v":"Veranstaltungsbudget für \nVeranstaltungsname"}]
["Die Bezeichnung \"Zusammenfassung_Gewinn–Verlust\" steht in Zelle C3. Die nächste Anweisung finden Sie in Zelle A5.",null,"Zusammenfassung_Gewinn–Verlust"]
[]
["Die Tabelle \"Summe\" ab der Zelle rechts wird automatisch aktualisiert. Die nächste Anweisung finden Sie in Zelle A9.","Summe","Geschätzt","Tatsächlich"]
[null,"Gesamteinnahmen",{"$f":"Einnahmen!F5","v":{"v":1936,"d":"1,936.00 €"}},{"$f":"Einnahmen!G5","v":{"v":1831,"d":"1,831.00 €"}}]
[null,"Gesamtausgaben",{"$f":"Ausgaben!G5","v":{"v":1145,"d":"1,145.00 €"}},{"$f":"Ausgaben!H5","v":{"v":395,"d":"395.00 €"}}]
[null,"Gesamtgewinn (oder -verlust)",{"$f":"C6-C7","v":{"v":791,"d":"791.00 €"}},{"$f":"D6-D7","v":{"v":1436,"d":"1,436.00 €"}}]
["In der Zelle rechts gibt es ein gruppiertes Säulendiagramm mit einem Vergleich von \"Geschätzt und tatsächlich Gesamteinnahmen\"und \"Gesamtausgaben\".","In dieser Zelle gibt es ein gruppiertes Säulendiagramm mit einem Vergleich von \"Geschätzt und tatsächlich Gesamteinnahmen\"und \"Gesamtausgaben\"."]